[Event "*** MasterClass Titled Tuesday Blitz"]
[Site "Chess.com"]
[Date "2017.12.05"]
[Round "6"]
[White "PenguinPacks"]
[Black "Margency"]
[Result "0-1"]
[WhiteElo "2261"]
[BlackElo "2490"]
[TimeControl "180+2"]
[EndTime "15:31:12 PST"]
[Termination "Margency won by resignation"]

1. d4 {[%clk 0:03:01]} 1... Nf6 {[%clk 0:03:00]} 2. c4 {[%clk 0:02:59.7]} 2...
g6 {[%clk 0:03:01.6]} 3. Nc3 {[%clk 0:02:59.6]} 3... Bg7 {[%clk 0:03:03.5]} 4.
e4 {[%clk 0:03:00.8]} 4... d6 {[%clk 0:03:04.7]} 5. f3 {[%clk 0:03:01.8]} 5...
c6 {[%clk 0:03:05.6]} 6. Nge2 {[%clk 0:03:03]} 6... a6 {[%clk 0:03:06.9]} 7. Be3
{[%clk 0:02:21.8]} 7... b5 {[%clk 0:03:06.3]} 8. c5 {[%clk 0:02:23]} 8... Nbd7
{[%clk 0:03:06.4]} 9. cxd6 {[%clk 0:02:01.8]} 9... exd6 {[%clk 0:03:06.5]} 10.
Qd2 {[%clk 0:02:02.8]} 10... O-O {[%clk 0:03:05.9]} 11. Nf4 {[%clk 0:02:03.9]}
11... Bb7 {[%clk 0:03:06.3]} 12. Be2 {[%clk 0:02:05]} 12... c5 {[%clk
0:03:06.1]} 13. dxc5 {[%clk 0:01:58.5]} 13... dxc5 {[%clk 0:03:06.7]} 14. O-O
{[%clk 0:01:55.6]} 14... Rc8 {[%clk 0:03:02.4]} 15. Rfd1 {[%clk 0:01:52.1]}
15... c4 {[%clk 0:02:53]} 16. a4 {[%clk 0:01:46.5]} 16... b4 {[%clk 0:02:52.8]}
17. Ncd5 {[%clk 0:01:47.7]} 17... a5 {[%clk 0:02:52.3]} 18. Rac1 {[%clk
0:01:23.9]} 18... Nxd5 {[%clk 0:02:28.7]} 19. Nxd5 {[%clk 0:01:25]} 19... Ne5
{[%clk 0:02:26.8]} 20. Nb6 {[%clk 0:00:35.3]} 20... c3 {[%clk 0:02:14.4]} 21.
Qe1 {[%clk 0:00:14.4]} 21... Qf6 {[%clk 0:01:40.1]} 22. Nxc8 {[%clk 0:00:15.1]}
22... Rxc8 {[%clk 0:01:34.3]} 23. bxc3 {[%clk 0:00:15.8]} 23... bxc3 {[%clk
0:01:34.5]} 24. Bd4 {[%clk 0:00:17]} 24... c2 {[%clk 0:01:29.4]} 25. Rd2 {[%clk
0:00:16.9]} 25... Bh6 {[%clk 0:01:27.6]} 26. Rdxc2 {[%clk 0:00:15.3]} 26...
Nxf3+ {[%clk 0:01:28]} 27. Bxf3 {[%clk 0:00:13.8]} 27... Qxd4+ {[%clk 0:01:29]}
28. Kh1 {[%clk 0:00:15.1]} 28... Bxc1 {[%clk 0:01:28]} 29. Rxc8+ {[%clk
0:00:15.8]} 29... Bxc8 {[%clk 0:01:28.6]} 30. Qxc1 {[%clk 0:00:17.3]} 30... Bd7
{[%clk 0:01:26.9]} 31. h3 {[%clk 0:00:16.5]} 31... Qxa4 {[%clk 0:01:27.1]} 32.
e5 {[%clk 0:00:17.2]} 32... Be6 {[%clk 0:01:27.3]} 33. Qg5 {[%clk 0:00:15.6]}
33... Qe8 {[%clk 0:01:24.8]} 34. h4 {[%clk 0:00:16.8]} 34... a4 {[%clk
0:01:23.6]} 35. Qe3 {[%clk 0:00:16.3]} 35... Qf8 {[%clk 0:01:22]} 36. Qc1 {[%clk
0:00:06]} 36... h5 {[%clk 0:01:20.7]} 37. Qa1 {[%clk 0:00:04.1]} 37... a3 {[%clk
0:01:21.7]} 38. Kh2 {[%clk 0:00:05.6]} 38... a2 {[%clk 0:01:22]} 39. Be4 {[%clk
0:00:06.8]} 39... Qb4 {[%clk 0:01:22.2]} 40. Bc2 {[%clk 0:00:07.1]} 40... Qxh4+
{[%clk 0:01:23]} 41. Kg1 {[%clk 0:00:08.2]} 41... Qc4 {[%clk 0:01:18.5]} 42. Bd1
{[%clk 0:00:06.2]} 42... Qb4 {[%clk 0:01:16.9]} 43. Bc2 {[%clk 0:00:06.5]} 43...
Qd2 {[%clk 0:01:15.9]} 44. Bd1 {[%clk 0:00:06.7]} 44... Bd5 {[%clk 0:01:16.4]}
45. Bf3 {[%clk 0:00:07.1]} 45... Bxf3 {[%clk 0:01:16.6]} 46. gxf3 {[%clk
0:00:08.3]} 46... Qc2 {[%clk 0:01:17.6]} 0-1

[Event "*** MasterClass Titled Tuesday Blitz"]
[Site "Chess.com"]
[Date "2017.12.05"]
[Round "6"]
[White "nicegg"]
[Black "DiogenesSinopeus"]
[Result "1-0"]
[WhiteElo "1999"]
[BlackElo "2351"]
[TimeControl "180+2"]
[EndTime "15:31:23 PST"]
[Termination "nicegg won by checkmate"]

1. e4 {[%clk 0:03:01.9]} 1... c5 {[%clk 0:03:01]} 2. Qh5 {[%clk 0:03:01.1]} 2...
e6 {[%clk 0:02:50.8]} 3. f4 {[%clk 0:03:01.4]} 3... Nf6 {[%clk 0:02:48.8]} 4.
Qf3 {[%clk 0:03:00.8]} 4... Nc6 {[%clk 0:02:36.1]} 5. c3 {[%clk 0:03:01.5]} 5...
d5 {[%clk 0:02:30.1]} 6. d3 {[%clk 0:03:01.6]} 6... dxe4 {[%clk 0:02:25]} 7.
dxe4 {[%clk 0:03:02.2]} 7... e5 {[%clk 0:02:16.6]} 8. f5 {[%clk 0:03:02.3]} 8...
b6 {[%clk 0:02:08.6]} 9. g4 {[%clk 0:03:02.2]} 9... Bb7 {[%clk 0:02:05.2]} 10.
Nd2 {[%clk 0:03:01]} 10... Qc7 {[%clk 0:02:02.6]} 11. g5 {[%clk 0:03:01.3]}
11... Nd7 {[%clk 0:02:03.2]} 12. h4 {[%clk 0:02:42.2]} 12... O-O-O {[%clk
0:02:02.9]} 13. Bc4 {[%clk 0:02:41]} 13... f6 {[%clk 0:01:45.8]} 14. Ne2 {[%clk
0:02:41]} 14... Kb8 {[%clk 0:01:32.7]} 15. Nf1 {[%clk 0:02:36]} 15... Be7 {[%clk
0:01:31.5]} 16. Be3 {[%clk 0:02:36.6]} 16... Na5 {[%clk 0:01:27.3]} 17. Be6
{[%clk 0:02:34.2]} 17... Nf8 {[%clk 0:01:25.8]} 18. Bb3 {[%clk 0:02:26.2]} 18...
Nxb3 {[%clk 0:01:21.8]} 19. axb3 {[%clk 0:02:26.8]} 19... Qc6 {[%clk 0:00:59.4]}
20. Nfg3 {[%clk 0:02:22.9]} 20... Qb5 {[%clk 0:00:53.8]} 21. Nc1 {[%clk
0:02:11.8]} 21... Nd7 {[%clk 0:00:52.1]} 22. Qe2 {[%clk 0:02:10.1]} 22... Qc6
{[%clk 0:00:46.1]} 23. Qf3 {[%clk 0:02:09]} 23... c4 {[%clk 0:00:44.5]} 24. b4
{[%clk 0:02:07.1]} 24... a6 {[%clk 0:00:29.7]} 25. Rh2 {[%clk 0:02:01.9]} 25...
Kc7 {[%clk 0:00:30.6]} 26. Rd2 {[%clk 0:02:00.8]} 26... Nb8 {[%clk 0:00:24.9]}
27. Nce2 {[%clk 0:01:59]} 27... Rxd2 {[%clk 0:00:21.4]} 28. Bxd2 {[%clk
0:01:58.2]} 28... Rd8 {[%clk 0:00:22.8]} 29. O-O-O {[%clk 0:01:58.3]} 29... Qa4
{[%clk 0:00:22.8]} 30. Ng1 {[%clk 0:01:31.1]} 30... Bc6 {[%clk 0:00:21.9]} 31.
Kb1 {[%clk 0:01:28.4]} 31... a5 {[%clk 0:00:15.7]} 32. bxa5 {[%clk 0:01:27.4]}
32... Qxa5 {[%clk 0:00:16.6]} 33. Be3 {[%clk 0:01:24.5]} 33... Nd7 {[%clk
0:00:15.6]} 34. Qe2 {[%clk 0:01:20.1]} 34... b5 {[%clk 0:00:13.3]} 35. Nh5
{[%clk 0:01:20.2]} 35... Ra8 {[%clk 0:00:14]} 36. Kc2 {[%clk 0:01:19]} 36...
Qa4+ {[%clk 0:00:14.6]} 37. Kd2 {[%clk 0:01:20.2]} 37... Qb3 {[%clk 0:00:14]}
38. Ke1 {[%clk 0:01:20.8]} 38... Ra2 {[%clk 0:00:13.7]} 39. Rd2 {[%clk
0:01:20.6]} 39... Nc5 {[%clk 0:00:09.2]} 40. Nxg7 {[%clk 0:01:18.9]} 40... Nxe4
{[%clk 0:00:09.4]} 41. Ne6+ {[%clk 0:01:18.9]} 41... Kc8 {[%clk 0:00:09.8]} 42.
gxf6 {[%clk 0:01:13.1]} 42... Bxf6 {[%clk 0:00:07.3]} 43. Bg5 {[%clk 0:01:11.3]}
43... Nxd2 {[%clk 0:00:07.1]} 44. Qxd2 {[%clk 0:01:12.4]} 44... Bxg5 {[%clk
0:00:06.4]} 45. hxg5 {[%clk 0:01:12.7]} 45... Qxb2 {[%clk 0:00:05.7]} 46. Qd8+
{[%clk 0:01:13]} 46... Kb7 {[%clk 0:00:07.1]} 47. Qe7+ {[%clk 0:01:13.7]} 47...
Kb6 {[%clk 0:00:07.2]} 48. Qc5+ {[%clk 0:01:14.1]} 48... Ka5 {[%clk 0:00:07.9]}
49. Qa7# {[%clk 0:01:14.3]} 1-0

[Event "*** MasterClass Titled Tuesday Blitz"]
[Site "Chess.com"]
[Date "2017.12.05"]
[Round "6"]
[White "Apocalyps999"]
[Black "larso"]
[Result "1-0"]
[WhiteElo "2415"]
[BlackElo "2371"]
[TimeControl "180+2"]
[EndTime "15:31:28 PST"]
[Termination "Apocalyps999 won by checkmate"]

1. e4 {[%clk 0:02:59.3]} 1... e6 {[%clk 0:02:57.9]} 2. d4 {[%clk 0:02:58.4]}
2... d5 {[%clk 0:02:45.4]} 3. Nc3 {[%clk 0:02:58.3]} 3... Bb4 {[%clk 0:02:43.6]}
4. a3 {[%clk 0:02:58.1]} 4... Bxc3+ {[%clk 0:02:40.4]} 5. bxc3 {[%clk 0:03:00]}
5... dxe4 {[%clk 0:02:36.7]} 6. Qg4 {[%clk 0:03:00.6]} 6... Nf6 {[%clk
0:02:36.5]} 7. Qxg7 {[%clk 0:03:00.9]} 7... Rg8 {[%clk 0:02:38]} 8. Qh6 {[%clk
0:03:02.4]} 8... c5 {[%clk 0:02:38.4]} 9. Ne2 {[%clk 0:03:01.9]} 9... Nc6 {[%clk
0:02:38.7]} 10. dxc5 {[%clk 0:03:00.4]} 10... Bd7 {[%clk 0:02:29.1]} 11. Nd4
{[%clk 0:02:53.9]} 11... Qe7 {[%clk 0:02:28.1]} 12. Nb5 {[%clk 0:02:16.5]} 12...
Rg6 {[%clk 0:02:13.3]} 13. Nd6+ {[%clk 0:02:07.1]} 13... Kd8 {[%clk 0:02:00.7]}
14. Qe3 {[%clk 0:01:56.9]} 14... Kc7 {[%clk 0:01:57.3]} 15. Rb1 {[%clk
0:01:49.1]} 15... b6 {[%clk 0:01:51.9]} 16. cxb6+ {[%clk 0:01:36.8]} 16... Kxd6
{[%clk 0:01:52.9]} 17. a4 {[%clk 0:01:37.7]} 17... Nd5 {[%clk 0:01:47.8]} 18.
Ba3+ {[%clk 0:01:17.7]} 18... Ke5 {[%clk 0:01:46.2]} 19. f4+ {[%clk 0:01:00.6]}
19... Kf6 {[%clk 0:01:35]} 20. Bxe7+ {[%clk 0:00:59.4]} 20... Kxe7 {[%clk
0:01:36.9]} 21. Qc5+ {[%clk 0:00:49]} 21... Kf6 {[%clk 0:01:35.6]} 22. b7 {[%clk
0:00:48.9]} 22... Rb8 {[%clk 0:01:36.7]} 23. Qd6 {[%clk 0:00:31.6]} 23... Be8
{[%clk 0:01:34]} 24. Bc4 {[%clk 0:00:23.9]} 24... Kg7 {[%clk 0:01:30.9]} 25. O-O
{[%clk 0:00:21.4]} 25... Ne3 {[%clk 0:01:26.4]} 26. Bb5 {[%clk 0:00:20.8]} 26...
e5 {[%clk 0:00:46]} 27. Qc7 {[%clk 0:00:20.6]} 27... Nxf1 {[%clk 0:00:39.9]} 28.
Bxc6 {[%clk 0:00:19.1]} 28... Rxb7 {[%clk 0:00:40.1]} 29. Bxb7 {[%clk
0:00:16.7]} 29... Ne3 {[%clk 0:00:40]} 30. Bxe4 {[%clk 0:00:17.7]} 30... Re6
{[%clk 0:00:39]} 31. f5 {[%clk 0:00:17.8]} 31... Rf6 {[%clk 0:00:38.4]} 32. Qxe5
{[%clk 0:00:18.4]} 32... Nc4 {[%clk 0:00:39.1]} 33. Qg3+ {[%clk 0:00:18.8]}
33... Kf8 {[%clk 0:00:39.6]} 34. Rb8 {[%clk 0:00:18.4]} 34... Nd6 {[%clk
0:00:37.5]} 35. Bd3 {[%clk 0:00:19.1]} 35... Ke7 {[%clk 0:00:36.5]} 36. Qe5+
{[%clk 0:00:19.7]} 36... Kd7 {[%clk 0:00:37.8]} 37. Qxf6 {[%clk 0:00:20.4]}
37... Kc7 {[%clk 0:00:36.7]} 38. Qd8+ {[%clk 0:00:18.3]} 38... Kc6 {[%clk
0:00:37.5]} 39. Bb5+ {[%clk 0:00:18.6]} 39... Kc5 {[%clk 0:00:37]} 40. Bxe8
{[%clk 0:00:18.8]} 40... Kd5 {[%clk 0:00:37.3]} 41. Rb5+ {[%clk 0:00:17.7]}
41... Kc4 {[%clk 0:00:37.8]} 42. Qxd6 {[%clk 0:00:18.3]} 42... Kxc3 {[%clk
0:00:39.1]} 43. Qd3# {[%clk 0:00:18.7]} 1-0

[Event "*** MasterClass Titled Tuesday Blitz"]
[Site "Chess.com"]
[Date "2017.12.05"]
[Round "6"]
[White "robbykevlishvili"]
[Black "Salem-AR"]
[Result "1-0"]
[WhiteElo "2443"]
[BlackElo "2810"]
[TimeControl "180+2"]
[EndTime "15:31:29 PST"]
[Termination "robbykevlishvili won by resignation"]

1. e4 {[%clk 0:03:01.9]} 1... c5 {[%clk 0:03:00.9]} 2. Nf3 {[%clk 0:03:01.2]}
2... d6 {[%clk 0:03:02.5]} 3. d4 {[%clk 0:03:02.7]} 3... cxd4 {[%clk 0:03:04.4]}
4. Nxd4 {[%clk 0:03:04.3]} 4... Nf6 {[%clk 0:03:05.9]} 5. Nc3 {[%clk 0:03:05.9]}
5... a6 {[%clk 0:03:07.5]} 6. Be3 {[%clk 0:03:05.9]} 6... Ng4 {[%clk 0:03:07.6]}
7. Bg5 {[%clk 0:03:06.4]} 7... h6 {[%clk 0:03:08.5]} 8. Bc1 {[%clk 0:03:08]}
8... Nf6 {[%clk 0:03:09.2]} 9. Be3 {[%clk 0:03:07.4]} 9... e5 {[%clk 0:03:07.8]}
10. Nb3 {[%clk 0:03:06.1]} 10... Be6 {[%clk 0:03:08.7]} 11. f3 {[%clk
0:03:05.3]} 11... h5 {[%clk 0:03:08.3]} 12. Qd2 {[%clk 0:03:05.2]} 12... Nbd7
{[%clk 0:03:09.4]} 13. Nd5 {[%clk 0:03:06.4]} 13... Bxd5 {[%clk 0:03:07.6]} 14.
exd5 {[%clk 0:03:07.9]} 14... g6 {[%clk 0:03:05]} 15. Be2 {[%clk 0:03:08.6]}
15... Qc7 {[%clk 0:03:04.4]} 16. O-O {[%clk 0:03:05.2]} 16... Nb6 {[%clk
0:03:02.3]} 17. c4 {[%clk 0:02:44]} 17... Nxc4 {[%clk 0:03:03.1]} 18. Bxc4
{[%clk 0:02:30.2]} 18... Qxc4 {[%clk 0:03:05]} 19. Rfd1 {[%clk 0:02:31.5]} 19...
Be7 {[%clk 0:02:55.3]} 20. Na5 {[%clk 0:02:28.3]} 20... Qb5 {[%clk 0:02:53.4]}
21. Rac1 {[%clk 0:02:21.4]} 21... Bd8 {[%clk 0:02:51.9]} 22. Nc4 {[%clk
0:02:21.1]} 22... O-O {[%clk 0:01:31.8]} 23. Nxd6 {[%clk 0:02:21.5]} 23... Qd7
{[%clk 0:01:32.6]} 24. Ne4 {[%clk 0:02:23]} 24... Nxe4 {[%clk 0:01:27.7]} 25.
fxe4 {[%clk 0:02:24.9]} 25... f5 {[%clk 0:01:24.4]} 26. d6 {[%clk 0:02:20.5]}
26... f4 {[%clk 0:01:21.4]} 27. Bf2 {[%clk 0:02:11.3]} 27... Qe6 {[%clk
0:01:08.2]} 28. d7 {[%clk 0:02:04.6]} 28... Be7 {[%clk 0:00:32.5]} 29. Qd5
{[%clk 0:02:04.5]} 29... Kf7 {[%clk 0:00:30]} 30. Bb6 {[%clk 0:02:04.5]} 30...
Qxd5 {[%clk 0:00:29.7]} 31. Rxd5 {[%clk 0:02:04.3]} 31... Ke6 {[%clk 0:00:31.2]}
32. Bc7 {[%clk 0:01:59.9]} 32... f3 {[%clk 0:00:05.7]} 33. Rcd1 {[%clk
0:01:50.2]} 33... Bd8 {[%clk 0:00:06.6]} 34. Rxe5+ {[%clk 0:01:45.7]} 34... Kf6
{[%clk 0:00:07.7]} 35. Bxd8+ {[%clk 0:01:44.6]} 35... Kxe5 {[%clk 0:00:08]} 36.
Bc7+ {[%clk 0:01:44.8]} 36... Kxe4 {[%clk 0:00:07.6]} 37. d8=Q {[%clk
0:01:42.1]} 37... Raxd8 {[%clk 0:00:08.6]} 38. Rxd8 {[%clk 0:01:42]} 38... Rf7
{[%clk 0:00:10.2]} 39. Bb6 {[%clk 0:01:41.5]} 39... fxg2 {[%clk 0:00:10.9]} 40.
Kxg2 {[%clk 0:01:41.6]} 40... Rf5 {[%clk 0:00:12.6]} 41. Rd4+ {[%clk 0:01:40.1]}
41... Ke5 {[%clk 0:00:13.9]} 42. Rd2 {[%clk 0:01:41]} 42... Ke4 {[%clk
0:00:14.9]} 43. Bf2 {[%clk 0:01:40.9]} 43... Rg5+ {[%clk 0:00:16]} 44. Kf1
{[%clk 0:01:40.9]} 44... Ra5 {[%clk 0:00:17.1]} 45. b3 {[%clk 0:01:40.7]} 45...
Rf5 {[%clk 0:00:15.9]} 46. Ke2 {[%clk 0:01:41.5]} 46... Ra5 {[%clk 0:00:16.7]}
47. a4 {[%clk 0:01:41.1]} 47... Rg5 {[%clk 0:00:16.3]} 48. Rd4+ {[%clk
0:01:41.5]} 48... Ke5 {[%clk 0:00:17.4]} 49. Rd7 {[%clk 0:01:40.7]} 49... b5
{[%clk 0:00:18.4]} 50. a5 {[%clk 0:01:38.3]} 50... Ke4 {[%clk 0:00:16.3]} 51.
Rd6 {[%clk 0:01:36.9]} 51... Rg2 {[%clk 0:00:14.4]} 52. Rxa6 {[%clk 0:01:36.2]}
52... g5 {[%clk 0:00:15.6]} 53. Rb6 {[%clk 0:01:35]} 1-0

[Event "*** MasterClass Titled Tuesday Blitz"]
[Site "Chess.com"]
[Date "2017.12.05"]
[Round "6"]
[White "AbdAlAgathos"]
[Black "SanQui14"]
[Result "1-0"]
[WhiteElo "2303"]
[BlackElo "2174"]
[TimeControl "180+2"]
[EndTime "15:31:31 PST"]
[Termination "AbdAlAgathos won by resignation"]

1. e4 {[%clk 0:03:01.9]} 1... c5 {[%clk 0:02:54.6]} 2. Nf3 {[%clk 0:03:02.6]}
2... g6 {[%clk 0:02:56.5]} 3. c4 {[%clk 0:03:03]} 3... Bg7 {[%clk 0:02:57.3]} 4.
d4 {[%clk 0:03:04.3]} 4... cxd4 {[%clk 0:02:59.2]} 5. Nxd4 {[%clk 0:03:06.2]}
5... Nc6 {[%clk 0:03:00.7]} 6. Nc2 {[%clk 0:03:07.7]} 6... Nf6 {[%clk
0:03:01.8]} 7. Nc3 {[%clk 0:03:09]} 7... d6 {[%clk 0:03:02.5]} 8. Be2 {[%clk
0:03:08.3]} 8... O-O {[%clk 0:03:03.6]} 9. O-O {[%clk 0:03:09.4]} 9... Nd7
{[%clk 0:03:05.5]} 10. Bd2 {[%clk 0:03:09.5]} 10... Nc5 {[%clk 0:03:06.7]} 11.
b4 {[%clk 0:03:10.7]} 11... Ne6 {[%clk 0:03:06.5]} 12. Rb1 {[%clk 0:03:01.5]}
12... Ned4 {[%clk 0:03:06.7]} 13. Nxd4 {[%clk 0:02:57.3]} 13... Nxd4 {[%clk
0:03:08.6]} 14. Bd3 {[%clk 0:02:58.4]} 14... b6 {[%clk 0:03:09.4]} 15. a4 {[%clk
0:02:53.5]} 15... Bb7 {[%clk 0:03:06.3]} 16. a5 {[%clk 0:02:38.2]} 16... Rc8
{[%clk 0:03:04.9]} 17. axb6 {[%clk 0:02:35.5]} 17... axb6 {[%clk 0:03:04]} 18.
Re1 {[%clk 0:02:12.2]} 18... Qd7 {[%clk 0:02:53.1]} 19. Bf1 {[%clk 0:02:10]}
19... e6 {[%clk 0:02:48]} 20. Be3 {[%clk 0:02:08.7]} 20... e5 {[%clk 0:02:47.7]}
21. Rc1 {[%clk 0:01:51.1]} 21... Ra8 {[%clk 0:02:43.5]} 22. Bxd4 {[%clk
0:01:42.5]} 22... exd4 {[%clk 0:02:42.7]} 23. Nb5 {[%clk 0:01:44.4]} 23... Rfe8
{[%clk 0:02:37.9]} 24. Nxd4 {[%clk 0:01:38.1]} 24... Rxe4 {[%clk 0:02:35.7]} 25.
Rxe4 {[%clk 0:01:35.8]} 25... Bxe4 {[%clk 0:02:37.6]} 26. Nb5 {[%clk 0:01:24.7]}
26... Be5 {[%clk 0:02:35.5]} 27. c5 {[%clk 0:01:17.3]} 27... bxc5 {[%clk
0:02:14.3]} 28. bxc5 {[%clk 0:01:17.4]} 28... Bf4 {[%clk 0:02:07.7]} 29. Rc4
{[%clk 0:01:04.2]} 29... d5 {[%clk 0:02:07.4]} 30. Rxe4 {[%clk 0:01:05.1]} 30...
Qf5 {[%clk 0:01:46.4]} 31. Ra4 {[%clk 0:00:59.6]} 31... Rc8 {[%clk 0:01:39.1]}
32. Qf3 {[%clk 0:00:56.2]} 32... Rxc5 {[%clk 0:01:31.4]} 33. Rxf4 {[%clk
0:00:55.8]} 33... Qb1 {[%clk 0:01:31.1]} 34. Na3 {[%clk 0:00:37.8]} 34... Qb7
{[%clk 0:01:28.4]} 35. h4 {[%clk 0:00:33.6]} 35... Rc1 {[%clk 0:01:28.8]} 36.
Qe2 {[%clk 0:00:25.8]} 36... h6 {[%clk 0:00:51.6]} 37. g3 {[%clk 0:00:21.8]}
37... g5 {[%clk 0:00:49]} 38. hxg5 {[%clk 0:00:22.6]} 38... hxg5 {[%clk
0:00:50.9]} 39. Rf5 {[%clk 0:00:23.8]} 39... Kf8 {[%clk 0:00:48.3]} 40. Kh2
{[%clk 0:00:19.5]} 40... Rc3 {[%clk 0:00:41.5]} 41. Nb5 {[%clk 0:00:18.5]} 41...
Rb3 {[%clk 0:00:37.8]} 42. Nd6 {[%clk 0:00:19.4]} 42... Qd7 {[%clk 0:00:36.4]}
43. Rxf7+ {[%clk 0:00:19.4]} 43... Qxf7 {[%clk 0:00:38.3]} 44. Nxf7 {[%clk
0:00:21.1]} 44... Kxf7 {[%clk 0:00:39.5]} 45. Bg2 {[%clk 0:00:21.2]} 1-0

[Event "*** MasterClass Titled Tuesday Blitz"]
[Site "Chess.com"]
[Date "2017.12.05"]
[Round "6"]
[White "MateusViageiro"]
[Black "lucasmito"]
[Result "0-1"]
[WhiteElo "2172"]
[BlackElo "2209"]
[TimeControl "180+2"]
[EndTime "15:31:38 PST"]
[Termination "lucasmito won by resignation"]

1. e4 {[%clk 0:03:01.9]} 1... e5 {[%clk 0:02:56.5]} 2. Nf3 {[%clk 0:03:02.1]}
2... Nc6 {[%clk 0:02:55.1]} 3. Bb5 {[%clk 0:03:03.5]} 3... f5 {[%clk 0:02:55]}
4. d3 {[%clk 0:03:03.8]} 4... fxe4 {[%clk 0:02:53.3]} 5. dxe4 {[%clk 0:03:04.8]}
5... Nf6 {[%clk 0:02:54.2]} 6. Nbd2 {[%clk 0:03:04.7]} 6... d6 {[%clk
0:02:52.9]} 7. O-O {[%clk 0:03:04.9]} 7... Be7 {[%clk 0:02:54.4]} 8. c3 {[%clk
0:03:01.5]} 8... O-O {[%clk 0:02:54.8]} 9. h3 {[%clk 0:03:02.2]} 9... Qe8 {[%clk
0:02:51.1]} 10. Qe2 {[%clk 0:02:42.5]} 10... Nh5 {[%clk 0:02:39.2]} 11. Nc4
{[%clk 0:02:39.7]} 11... Qg6 {[%clk 0:02:36.5]} 12. Kh2 {[%clk 0:02:37.7]} 12...
Nf4 {[%clk 0:02:31.6]} 13. Bxf4 {[%clk 0:02:37.2]} 13... Rxf4 {[%clk 0:02:33.5]}
14. Ncd2 {[%clk 0:02:37.3]} 14... Bd7 {[%clk 0:02:20]} 15. a4 {[%clk 0:02:34.2]}
15... Raf8 {[%clk 0:02:18.5]} 16. Bd3 {[%clk 0:02:19.6]} 16... Qh5 {[%clk
0:01:45.7]} 17. Kg1 {[%clk 0:01:44.6]} 17... Bxh3 {[%clk 0:01:23.9]} 18. Ne1
{[%clk 0:01:14.6]} 18... Qg6 {[%clk 0:00:46.8]} 19. b4 {[%clk 0:00:53.8]} 19...
Bh4 {[%clk 0:00:21.9]} 20. f3 {[%clk 0:00:45.6]} 20... Nd8 {[%clk 0:00:12.2]}
21. Bc4+ {[%clk 0:00:35.1]} 21... Kh8 {[%clk 0:00:12.7]} 22. Nd3 {[%clk
0:00:36.2]} 22... R4f6 {[%clk 0:00:07.1]} 23. a5 {[%clk 0:00:24.3]} 23... Be6
{[%clk 0:00:07.8]} 24. Bd5 {[%clk 0:00:20.8]} 24... Bg3 {[%clk 0:00:08]} 25. Nf2
{[%clk 0:00:20.1]} 25... Qh5 {[%clk 0:00:07.8]} 26. Nh3 {[%clk 0:00:18.5]} 26...
Bxh3 {[%clk 0:00:08.5]} 27. gxh3 {[%clk 0:00:19.7]} 27... Qxh3 {[%clk
0:00:09.8]} 28. Qg2 {[%clk 0:00:20.9]} 28... Qh4 {[%clk 0:00:10.5]} 29. c4
{[%clk 0:00:19.4]} 29... Rg6 {[%clk 0:00:11.4]} 30. f4 {[%clk 0:00:14.9]} 30...
Bxf4 {[%clk 0:00:12.1]} 31. Nf3 {[%clk 0:00:15.2]} 31... Rxg2+ {[%clk
0:00:10.8]} 32. Kxg2 {[%clk 0:00:15.2]} 32... Qg3+ {[%clk 0:00:11]} 33. Kh1
{[%clk 0:00:16.2]} 33... c6 {[%clk 0:00:08.6]} 0-1

[Event "*** MasterClass Titled Tuesday Blitz"]
[Site "Chess.com"]
[Date "2017.12.05"]
[Round "6"]
[White "JoachimBN"]
[Black "TenisMaster"]
[Result "1-0"]
[WhiteElo "2540"]
[BlackElo "2725"]
[TimeControl "180+2"]
[EndTime "15:31:41 PST"]
[Termination "JoachimBN won by resignation"]

1. e4 {[%clk 0:03:01.9]} 1... c5 {[%clk 0:02:59.7]} 2. Nf3 {[%clk 0:02:52.7]}
2... e6 {[%clk 0:03:00.1]} 3. b3 {[%clk 0:02:53.6]} 3... b6 {[%clk 0:02:58.8]}
4. Bb2 {[%clk 0:02:51.9]} 4... Bb7 {[%clk 0:02:59.6]} 5. Bd3 {[%clk 0:02:50.2]}
5... Nc6 {[%clk 0:02:57]} 6. O-O {[%clk 0:02:32.9]} 6... Nge7 {[%clk 0:02:53.4]}
7. Re1 {[%clk 0:02:25.4]} 7... Ng6 {[%clk 0:02:53.6]} 8. Na3 {[%clk 0:02:26.2]}
8... Nb4 {[%clk 0:02:43.4]} 9. Bc4 {[%clk 0:02:24.9]} 9... a6 {[%clk 0:02:33.3]}
10. c3 {[%clk 0:02:22.8]} 10... d5 {[%clk 0:02:24]} 11. cxb4 {[%clk 0:02:15.5]}
11... dxc4 {[%clk 0:02:24.9]} 12. bxc5 {[%clk 0:02:16.2]} 12... Nf4 {[%clk
0:02:14.2]} 13. cxb6 {[%clk 0:01:54.2]} 13... Nd3 {[%clk 0:02:03.8]} 14. Nxc4
{[%clk 0:01:54.8]} 14... Bc5 {[%clk 0:02:05.3]} 15. Re2 {[%clk 0:01:45.5]} 15...
O-O {[%clk 0:01:50]} 16. Ne1 {[%clk 0:01:35.8]} 16... Bxe4 {[%clk 0:01:19.9]}
17. Ba3 {[%clk 0:01:18.7]} 17... Bxa3 {[%clk 0:00:34]} 18. Nxa3 {[%clk
0:01:19.6]} 18... Qxb6 {[%clk 0:00:31.5]} 19. Re3 {[%clk 0:01:20.6]} 19... Nxe1
{[%clk 0:00:30.6]} 20. Qxe1 {[%clk 0:01:21.8]} 20... Bg6 {[%clk 0:00:31.6]} 21.
Nc4 {[%clk 0:01:19]} 21... Qd4 {[%clk 0:00:32.8]} 22. Rc3 {[%clk 0:01:18.1]}
22... Rfd8 {[%clk 0:00:33.4]} 23. Qe3 {[%clk 0:01:18.8]} 23... Bf5 {[%clk
0:00:30.8]} 24. Qxd4 {[%clk 0:01:14.6]} 24... Rxd4 {[%clk 0:00:32.7]} 25. f3
{[%clk 0:01:16.5]} 25... h5 {[%clk 0:00:33.1]} 26. Kf2 {[%clk 0:01:13.9]} 26...
f6 {[%clk 0:00:34.1]} 27. Re1 {[%clk 0:01:09.6]} 27... e5 {[%clk 0:00:34.4]} 28.
Rcc1 {[%clk 0:01:09]} 28... Rad8 {[%clk 0:00:34.9]} 29. Red1 {[%clk 0:01:07.9]}
29... h4 {[%clk 0:00:35.1]} 30. Ke2 {[%clk 0:01:06.1]} 30... Kf7 {[%clk
0:00:33.3]} 31. Ne3 {[%clk 0:01:02.2]} 31... Bd3+ {[%clk 0:00:33.2]} 32. Ke1
{[%clk 0:01:03.7]} 32... g5 {[%clk 0:00:32.1]} 33. Rc7+ {[%clk 0:01:02.3]} 33...
Kg6 {[%clk 0:00:32.8]} 34. Rdc1 {[%clk 0:01:02.5]} 34... Bb5 {[%clk 0:00:31.9]}
35. R7c2 {[%clk 0:01:02]} 35... R8d6 {[%clk 0:00:29.7]} 36. a4 {[%clk
0:01:00.7]} 36... Bd3 {[%clk 0:00:29.6]} 37. Rc6 {[%clk 0:00:59.4]} 37... e4
{[%clk 0:00:30.6]} 38. Rxd6 {[%clk 0:00:56.9]} 38... Rxd6 {[%clk 0:00:30.9]} 39.
Kf2 {[%clk 0:00:58.1]} 39... f5 {[%clk 0:00:30.4]} 40. Rc5 {[%clk 0:00:54]}
40... exf3 {[%clk 0:00:20.1]} 41. gxf3 {[%clk 0:00:55.9]} 41... Bb1 {[%clk
0:00:20.6]} 42. Nc4 {[%clk 0:00:51.4]} 42... Re6 {[%clk 0:00:16.3]} 43. d4
{[%clk 0:00:46.1]} 43... Bd3 {[%clk 0:00:17.4]} 44. Ne5+ {[%clk 0:00:47]} 1-0